bitfinex-derivatives/quotes_SOLF0:USTF0_20240818
["timestamp","ask_amount","ask_price","bid_price","bid_amount"]
[1723975294754,0.05240677,143.02,142.99,0.04795156]
[1723975295848,3.54800677,143.02,142.99,0.04795156]
[1723975297153,3.54800677,143.02,142.99,3.54415156]
[1723975297857,3.4957,143.01,142.99,0.04795156]
[1723975300554,3.54800677,143.02,142.99,0.04795156]
[1723975301051,0.05240677,143.02,142.99,0.04795156]
[1723975301853,3.496,143.0,142.99,0.04795156]
[1723975303356,0.05240677,143.02,142.99,0.04795156]
[1723975304157,0.05240677,143.02,143.01,3.4957]
[1723975308065,21.01,143.17,143.04,3.4948]
[1723975308262,4.42,143.09,143.04,3.4948]
[1723975308459,5.66765844,143.08,143.01,1.2942]
[1723975308659,1.2859,143.14,143.01,1.2942]
[1723975308660,4.42,143.11,143.01,1.2942]
[1723975309060,3.4939,143.09,143.05,3.4945]
[1723975309361,0.04693397,143.07,143.05,0.05155171]
[1723975310960,0.04693397,143.07,143.06,3.4945]
[1723975312366,0.04693397,143.07,143.05,3.54615171]
[1723975313564,3.54123397,143.07,143.05,0.05155171]
[1723975314571,0.04693397,143.07,143.05,0.05155171]
[1723975315968,0.04693397,143.07,143.05,3.54625171]
[1723975317071,0.04693397,143.07,143.05,0.05155171]
[1723975317571,0.04693397,143.07,143.06,3.4945]
[1723975318769,1.2859,143.14,143.08,3.4939]
[1723975318770,5.7059,143.14,143.08,3.4939]
[1723975319067,3.4932,143.12,143.05,4.42]
[1723975319769,3.4932,143.12,143.07,0.05102045]
[1723975319973,3.4932,143.12,143.09,3.4937]
[1723975321078,3.4933,143.11,143.09,3.4937]
[1723975321578,7.89460366,143.15,143.09,3.54349691]
[1723975321779,3.4932,143.12,143.09,3.54349691]
[1723975323381,3.4933,143.11,143.09,3.54349691]
[1723975323878,3.4933,143.11,143.09,0.04979691]
[1723975324082,3.4935,143.1,143.09,0.04979691]
[1723975325570,9.15963206,143.1,143.09,0.04979691]
[1723975327778,5.66613206,143.1,143.09,0.04979691]
[1723975328285,9.15963206,143.1,143.09,0.04979691]
[1723975328577,5.66613206,143.1,143.09,0.04979691]
[1723975329482,4.42,143.13,143.09,0.04979691]
[1723975329775,5.66622559,143.12,143.02,4.42]
[1723975329974,5.66622559,143.11,143.02,4.42]
[1723975330281,3.4941,143.08,143.04,3.4948]
[1723975330875,0.04930364,143.07,143.05,0.04919013]
[1723975331081,0.04930364,143.07,143.02,1.78]
[1723975331082,3.4952,143.03,143.02,1.78]
[1723975331280,3.44367013,143.04,142.97,1.2732]
[1723975331480,20.98,143.13,142.97,1.2732]
[1723975331783,1.2808,143.14,142.97,1.2732]
[1723975331784,3.4945,143.06,143.01,3.4955]
[1723975331983,4.42,143.05,143.01,3.4955]
[1723975332283,0.04987318,143.04,143.02,0.04465259]
[1723975333482,0.04987318,143.04,143.02,3.53995259]
[1723975333779,4.42,143.03,143.02,0.04465259]
[1723975334690,0.04987318,143.04,143.02,0.04465259]
[1723975334892,4.46987318,143.04,143.02,0.04465259]
[1723975340099,3.4952,143.03,143.02,0.04465259]
[1723975342395,7.9152,143.03,143.02,0.04465259]
[1723975346204,4.42,143.03,143.02,0.04465259]
[1723975350300,0.04987318,143.04,143.02,0.04465259]
[1723975350900,0.04987318,143.04,143.03,3.4952]
[1723975351206,0.04987318,143.04,143.03,1.2684]
[1723975351704,0.04987318,143.04,143.03,4.7636]
[1723975359701,6.95917007,143.1,143.05,3.4947]
[1723975359702,3.46547007,143.1,143.05,3.4947]
[1723975359906,5.66695667,143.09,143.05,3.4947]
[1723975360105,5.66695667,143.08,143.05,3.4947]
[1723975360306,5.66695667,143.07,143.04,3.4949]
[1723975360507,3.43156396,143.09,143.04,3.4949]
[1723975360709,9.21016402,143.08,143.05,0.04540443]
[1723975360910,5.66695016,143.07,143.05,0.04540443]
[1723975361811,3.54321386,143.08,143.05,0.04540443]
[1723975362011,5.66695284,143.07,143.05,0.04540443]
[1723975362211,3.54321386,143.08,143.05,0.04540443]
[1723975362413,5.66695341,143.07,143.05,0.04540443]
[1723975362715,3.54321386,143.08,143.05,0.04540443]
[1723975362912,5.66695341,143.07,143.05,0.04540443]
[1723975363213,3.54321386,143.08,143.05,0.04540443]
[1723975363414,5.66695341,143.07,143.05,0.04540443]
[1723975363615,3.54321386,143.08,143.05,0.04540443]
[1723975363814,5.66695341,143.07,143.05,0.04540443]
[1723975364014,3.54321386,143.08,143.05,0.04540443]
[1723975364216,5.66695284,143.07,143.05,0.04540443]
[1723975364416,3.54321386,143.08,143.05,0.04540443]
[1723975364616,5.66695341,143.07,143.05,0.04540443]
[1723975364815,3.54321386,143.08,143.05,0.04540443]
[1723975365016,3.54321386,143.08,143.05,3.54010443]
[1723975365017,0.04911386,143.08,143.05,3.54010443]
[1723975365218,0.04911386,143.08,143.05,0.04540443]
[1723975365909,0.04911386,143.08,143.07,3.4942]
[1723975378627,4.42,143.13,143.09,3.4936]
[1723975378926,5.66496162,143.12,143.09,3.4936]
[1723975379123,5.66496162,143.11,143.09,3.4936]
[1723975379322,3.4926,143.14,143.1,3.4934]
[1723975379528,5.66449078,143.13,143.1,3.4934]
[1723975379723,5.66449078,143.12,143.1,3.54718162]
[1723975379918,3.4924,143.15,143.1,3.54718162]
[1723975380124,5.6642547,143.14,143.1,3.54718162]
[1723975380424,5.6642547,143.13,143.1,3.54718162]
[1723975380730,5.6642547,143.12,143.1,3.54718162]
[1723975380919,3.4924,143.15,143.1,3.54718162]
[1723975381122,5.66455852,143.14,143.1,3.54718162]
[1723975381323,5.66455852,143.13,143.1,3.54718162]
[1723975381622,5.66455852,143.12,143.1,3.54718162]
[1723975381828,3.4924,143.15,143.1,3.54718162]
[1723975382025,5.6645965,143.14,143.1,3.54718162]
[1723975382326,5.6645965,143.13,143.11,3.4933]
[1723975382529,5.6645965,143.12,143.11,3.4933]
[1723975383623,4.42,143.17,143.12,3.493]
[1723975383828,5.66397719,143.16,143.13,0.04548817]
[1723975384023,5.66397719,143.15,143.13,0.04548817]
[1723975384223,5.66397719,143.14,143.13,0.04548817]
[1723975384529,5.7303,143.18,143.13,0.04548817]
[1723975384733,5.66348579,143.17,143.13,0.04548817]
[1723975384928,5.66348579,143.16,143.13,0.04548817]
[1723975385133,5.66348579,143.15,143.13,0.04548817]
[1723975385333,7.9117,143.18,143.14,3.4925]
[1723975385632,5.66350649,143.17,143.14,3.4925]
[1723975385825,5.66350649,143.16,143.14,3.4925]
[1723975386031,5.66350649,143.15,143.14,3.4925]
[1723975386829,3.4914,143.19,143.15,3.4922]
[1723975387025,5.66310246,143.18,143.13,4.46548817]
[1723975387234,4.42,143.26,143.13,8.03126218]
[1723975387437,5.9188498,143.25,143.13,3.56577401]
[1723975387731,26.8988498,143.24,143.18,0.05107598]
[1723975387931,26.8988498,143.23,143.18,0.05107598]
[1723975388131,10.0821634,143.22,143.18,0.05107598]
[1723975388334,5.6621634,143.21,143.18,0.05107598]
[1723975388632,1.3451,143.21,143.18,0.05107598]
[1723975388831,5.66290184,143.2,143.18,0.05107598]
[1723975389043,3.46944219,143.19,143.18,0.05107598]
[1723975389333,5.66310736,143.19,143.18,0.05107598]
[1723975389635,9.24150435,143.19,143.18,0.05107598]
[1723975389830,12.73280435,143.19,143.18,0.05107598]
[1723975390837,7.06969699,143.19,143.18,0.05107598]
[1723975391044,12.73282665,143.19,143.18,0.05107598]
[1723975392926,9.15442966,143.19,143.18,0.05107598]
[1723975394941,3.492,143.17,143.11,6.9982]
[1723975395130,5.66312966,143.16,143.11,6.9982]
[1723975395339,5.66312966,143.15,143.11,2.5782]
[1723975395539,3.57925497,143.17,143.11,2.5782]
[1723975395837,5.66331036,143.16,143.13,3.4926]
[1723975396031,5.71438634,143.15,143.13,0.04874923]
[1723975396234,0.05107598,143.15,143.13,0.04874923]
[1723975396839,0.05107598,143.15,143.14,3.4925]
[1723975397038,5.71446979,143.15,143.14,3.4925]
[1723975399943,5.71446979,143.15,143.13,3.54144923]
[1723975400241,0.05107598,143.15,143.13,3.54144923]
[1723975401634,0.05107598,143.15,143.13,0.04874923]
[1723975402347,3.4925,143.14,143.13,0.04874923]
[1723975402930,0.05107598,143.15,143.09,3.4937]
[1723975402931,3.4929,143.13,143.09,3.4937]
[1723975403136,3.4929,143.13,143.07,4.42]
[1723975404046,0.04639638,143.11,143.09,0.05001834]
[1723975404239,3.493,143.12,143.09,0.05001834]
[1723975404439,0.05367499,143.11,143.09,0.05001834]
[1723975406849,0.05367499,143.11,143.09,3.54371834]
[1723975407251,0.05367499,143.11,143.09,0.05001834]
[1723975407545,0.05367499,143.11,143.1,3.4935]
[1723975409844,0.05367499,143.11,143.09,0.05001834]
[1723975411548,3.4935,143.1,143.09,0.05001834]
[1723975413851,4.47367499,143.11,143.09,0.05001834]
[1723975414651,0.05367499,143.11,143.09,0.05001834]
[1723975415053,0.05367499,143.11,143.09,3.54361834]
[1723975417946,0.05367499,143.11,143.1,3.4935]
[1723975421356,0.05367499,143.11,143.09,0.05001834]
[1723975421357,4.42,143.16,143.11,3.4932]
[1723975421558,5.6642822,143.15,143.11,3.4932]
[1723975421757,3.4923,143.15,143.11,3.4932]
[1723975421950,5.66422055,143.14,143.11,3.4932]
[1723975422146,3.4923,143.15,143.11,3.4932]
[1723975422147,5.66437741,143.13,143.11,3.4932]
[1723975422355,3.4923,143.15,143.11,3.4932]
[1723975422659,0.04615022,143.13,143.11,3.5415425]
[1723975423858,0.04615022,143.13,143.12,3.493]
[1723975425159,0.04615022,143.13,143.11,3.5414425]
[1723975426067,0.04615022,143.13,143.12,3.493]
[1723975428063,0.04615022,143.13,143.11,3.5415425]
[1723975431766,0.04615022,143.13,143.11,0.0483425]
[1723975436382,5.66428835,143.12,143.11,3.5416425]
[1723975436579,4.4,143.2,143.11,0.0483425]
[1723975436782,5.66296568,143.19,143.12,1.2633]
[1723975436981,9.12558234,143.18,143.12,1.2633]
[1723975437179,5.66296568,143.17,143.12,1.2633]
[1723975437484,5.66296568,143.16,143.13,3.4928]
[1723975437686,5.66296568,143.16,143.13,3.54097645]
[1723975437984,5.66296568,143.15,143.13,3.54097645]
[1723975438183,3.4921,143.16,143.13,0.04817645]
[1723975438380,5.66332739,143.15,143.13,0.04817645]
[1723975438583,5.66332739,143.14,143.13,0.04817645]
[1723975440980,9.15582739,143.14,143.13,0.04817645]
[1723975441185,5.66332739,143.14,143.13,0.04817645]
[1723975441777,9.15582739,143.14,143.13,0.04817645]
[1723975442588,5.66332739,143.14,143.13,0.04817645]
[1723975444180,5.66332739,143.14,143.13,3.54097645]
[1723975444582,3.4919,143.17,143.13,3.54097645]
[1723975444887,5.66324258,143.16,143.13,3.54097645]
[1723975445085,5.66324258,143.15,143.13,3.54097645]
[1723975445286,7.8916,143.18,143.13,3.54097645]
[1723975445487,5.66316669,143.17,143.13,3.54097645]
[1723975445689,5.66316669,143.16,143.13,3.54097645]
[1723975445985,5.66316669,143.15,143.13,3.54097645]
[1723975446178,5.66316669,143.14,143.13,3.54097645]
[1723975446581,5.66316669,143.17,143.13,3.54097645]
[1723975446779,5.66316669,143.16,143.13,3.54097645]
[1723975446985,5.66316669,143.15,143.13,3.54097645]
[1723975447189,3.4918,143.17,143.13,3.54097645]
[1723975447389,5.6629011,143.16,143.13,3.54097645]
[1723975447587,5.6629011,143.15,143.13,3.54097645]
[1723975447779,3.4918,143.17,143.13,3.54097645]
[1723975447979,5.66290111,143.16,143.13,3.54097645]
[1723975448185,5.66290111,143.15,143.13,3.54097645]
[1723975448384,3.4917,143.18,143.13,3.54097645]
[1723975448681,7.85632798,143.2,143.14,3.4925]
[1723975448885,5.66290031,143.19,143.14,3.4925]
[1723975449082,3.4918,143.17,143.13,0.04817645]
[1723975449289,5.66290031,143.16,143.13,3.54077645]
[1723975449487,5.66290031,143.15,143.13,0.04817645]
[1723975449688,3.4917,143.18,143.13,0.04817645]
[1723975449887,5.66290032,143.17,143.14,3.4925]
[1723975450094,5.66290032,143.16,143.14,3.4925]
[1723975450387,5.66290112,143.15,143.14,3.4925]
[1723975452189,7.8914,143.19,143.14,3.4925]
[1723975452383,5.66249757,143.18,143.15,3.4923]
[1723975452583,5.66249757,143.17,143.15,3.54179691]
[1723975452784,5.66230965,143.16,143.15,3.54179691]
[1723975452987,7.8914,143.19,143.15,3.54179691]
[1723975453291,5.66223523,143.18,143.15,3.54179691]
[1723975453491,5.66223523,143.17,143.15,3.54179691]
[1723975453690,3.4912,143.2,143.16,3.492]
[1723975453895,5.6622415,143.19,143.16,3.492]
[1723975454088,5.6622415,143.18,143.16,3.492]
[1723975454289,5.6622415,143.17,143.16,3.492]
[1723975454494,5.6622415,143.18,143.16,3.492]
[1723975454793,5.6622415,143.17,143.16,3.492]
[1723975456090,4.4,143.21,143.15,0.04949691]
[1723975456091,3.491,143.21,143.17,3.4917]
[1723975456295,5.66118556,143.2,143.15,1.35889691]
[1723975456491,4.4,143.25,143.15,2.70499691]
[1723975456686,3.4905,143.23,143.15,2.70499691]
[1723975456890,5.66046744,143.22,143.18,0.0464272]
[1723975457097,5.66046744,143.21,143.18,0.0464272]
[1723975457290,5.66046744,143.2,143.18,0.0464272]
[1723975457492,3.4905,143.23,143.18,0.0464272]
[1723975457691,5.6605776,143.22,143.19,3.4912]
[1723975457890,5.6605776,143.21,143.19,3.4912]
[1723975458090,5.6605776,143.2,143.19,3.4912]
[1723975459397,3.4902,143.24,143.2,3.491]
[1723975459591,5.6603402,143.23,143.2,3.491]
[1723975459793,5.6603402,143.22,143.21,0.04423082]
[1723975460001,5.6603402,143.23,143.21,0.04423082]
[1723975460197,5.6603402,143.22,143.21,0.04423082]
[1723975460388,3.4905,143.23,143.21,0.04423082]
[1723975460792,5.66044326,143.22,143.21,0.04423082]
[1723975461191,5.66048118,143.22,143.21,0.04423082]
[1723975464191,3.4902,143.24,143.21,0.04423082]
[1723975464388,5.66014721,143.23,143.21,0.04423082]
[1723975464592,3.4902,143.24,143.21,3.53503082]
[1723975464803,5.6601472,143.23,143.21,3.53503082]
[1723975465091,3.4902,143.24,143.21,3.53503082]
[1723975465297,5.66010986,143.23,143.21,3.53503082]
[1723975465499,3.49,143.25,143.21,3.53503082]
[1723975465696,5.66010986,143.24,143.21,3.53503082]
[1723975465898,5.66010986,143.23,143.21,3.53503082]
[1723975466101,3.49,143.25,143.21,3.53503082]
[1723975466298,5.66011042,143.24,143.21,3.53503082]
[1723975466499,5.66011042,143.23,143.21,3.53503082]
[1723975466701,3.49,143.25,143.21,3.53503082]
[1723975466900,5.66011014,143.24,143.21,3.53503082]
[1723975467098,3.49,143.25,143.22,3.4906]
[1723975467299,5.65984558,143.24,143.21,0.04423082]
[1723975467602,3.49,143.25,143.21,0.04423082]
[1723975467801,5.65984446,143.24,143.21,3.53483082]
[1723975468003,3.49,143.25,143.21,3.53483082]
[1723975468203,5.65980688,143.24,143.21,0.04423082]
[1723975468502,3.49,143.25,143.22,3.4904]
[1723975468899,5.65980576,143.24,143.22,3.4904]
[1723975469095,3.49,143.25,143.22,3.4904]
[1723975469292,5.65975911,143.24,143.22,3.4904]
[1723975469505,3.49,143.25,143.22,3.4904]
[1723975470404,7.8898,143.26,143.23,3.4903]
[1723975470605,5.6594794,143.25,143.23,3.4903]
[1723975470806,4.4,143.26,143.21,0.04423082]
[1723975471204,9.14937941,143.25,143.22,3.4905]
[1723975471404,3.4899,143.25,143.22,3.4905]
[1723975471806,3.4902,143.24,143.21,3.53503082]
[1723975472197,3.4902,143.24,143.21,0.04423082]
[1723975473309,3.49,143.25,143.22,3.4906]
[1723975474608,4.4,143.26,143.21,0.04423082]
[1723975474807,5.65974555,143.25,143.21,0.04423082]
[1723975475013,4.4,143.26,143.21,0.04423082]
[1723975475306,3.4905,143.23,143.21,0.04423082]
[1723975476401,3.4903,143.24,143.21,3.53503082]
[1723975476607,4.4,143.26,143.21,0.04423082]
[1723975477111,3.4904,143.23,143.21,0.04423082]
[1723975478307,3.4372273,143.28,143.21,0.04423082]
[1723975478612,10.06010467,143.27,143.23,3.4902]
[1723975478815,4.4,143.27,143.23,3.4902]
[1723975479114,4.4,143.27,143.24,0.04618828]
[1723975479516,3.4896,143.26,143.24,0.04618828]
[1723975479712,4.4,143.27,143.24,0.04618828]
[1723975481115,3.4899,143.25,143.24,0.04618828]
[1723975482506,9.1492884,143.25,143.24,0.04618828]
[1723975483014,5.6593884,143.25,143.24,0.04618828]
[1723975484110,5.6593884,143.25,143.24,3.53618828]
[1723975484315,5.6593884,143.25,143.24,0.04618828]
[1723975484515,5.6593884,143.26,143.24,0.04618828]
[1723975484715,3.4899,143.25,143.24,0.04618828]
[1723975485118,9.14928703,143.25,143.24,0.04618828]
[1723975485722,5.65938703,143.25,143.24,0.04618828]
[1723975486324,3.4895,143.27,143.24,3.53628828]
[1723975486524,5.65908392,143.26,143.24,3.53628828]
[1723975486819,5.65908392,143.25,143.24,3.53628828]
[1723975487019,5.65908392,143.25,143.24,0.04618828]
[1723975488925,3.4895,143.27,143.24,0.04618828]
[1723975489124,5.65907153,143.26,143.24,3.53618828]
[1723975489319,5.65907153,143.25,143.24,3.53618828]
[1723975490324,5.65907153,143.25,143.24,0.04618828]
[1723975490522,3.4895,143.27,143.24,0.04618828]
[1723975491222,5.65907074,143.26,143.24,0.04618828]
[1723975491428,3.4895,143.27,143.24,0.04618828]
[1723975491618,5.65907186,143.26,143.24,0.04618828]
[1723975491822,3.4895,143.27,143.24,0.04618828]
[1723975492025,5.65907074,143.26,143.24,0.04618828]
[1723975492231,3.4895,143.27,143.24,0.04618828]
[1723975492427,5.65907074,143.26,143.24,0.04618828]
[1723975492730,3.4895,143.27,143.24,0.04618828]
[1723975492926,5.6590713,143.26,143.24,0.04618828]
[1723975493125,3.4895,143.27,143.24,0.04618828]
[1723975493423,5.6590713,143.26,143.24,0.04618828]
[1723975493627,3.4895,143.27,143.24,0.04618828]
[1723975493829,5.65907074,143.26,143.24,0.04618828]
[1723975494035,3.4895,143.27,143.24,0.04618828]
[1723975494227,5.65907186,143.26,143.24,0.04618828]
[1723975494430,3.4895,143.27,143.24,0.04618828]
[1723975494631,5.65907074,143.26,143.24,0.04618828]
[1723975494827,3.4895,143.27,143.24,0.04618828]
[1723975495137,5.65907242,143.26,143.24,0.04618828]
[1723975495328,3.4895,143.27,143.24,0.04618828]
[1723975495629,9.14867162,143.26,143.24,0.04618828]
[1723975495934,24.52907359,143.28,143.24,0.04618828]
[1723975496233,3.4899,143.25,143.24,0.04618828]
[1723975497125,3.50718838,143.26,143.24,0.04618828]
[1723975497431,3.4895,143.27,143.24,0.04618828]
[1723975497827,9.19239414,143.26,143.24,0.04618828]
[1723975498030,3.53301759,143.26,143.24,0.04618828]
[1723975498729,3.4895,143.27,143.24,0.04618828]
[1723975498932,5.65937543,143.26,143.24,0.04618828]
[1723975499129,6.99089455,143.27,143.24,0.04618828]
[1723975499435,5.65937465,143.26,143.24,3.53618828]
[1723975499735,6.99089455,143.27,143.24,3.53618828]
[1723975499936,5.65938316,143.26,143.24,3.53618828]
[1723975500139,6.99089455,143.27,143.24,3.53618828]
[1723975500340,5.65937745,143.26,143.24,3.53618828]
[1723975500534,5.65937745,143.25,143.24,3.53618828]
[1723975500925,6.99089455,143.27,143.24,3.53618828]
[1723975501130,5.65937689,143.26,143.24,3.53618828]
[1723975501328,5.65937689,143.25,143.24,3.53618828]
[1723975501937,5.65937689,143.26,143.24,3.53618828]
[1723975502234,9.14897689,143.26,143.24,0.04618828]
[1723975502535,5.65937689,143.25,143.24,0.04618828]
[1723975502940,5.65937689,143.25,143.24,3.53628828]
[1723975503428,9.14927689,143.25,143.24,0.04618828]
[1723975503627,5.65937689,143.25,143.17,1.3164]
[1723975503826,5.65937689,143.24,143.17,1.3164]
[1723975504038,3.4898,143.26,143.22,3.4905]
[1723975504530,5.65981165,143.25,143.22,3.4905]
[1723975504731,5.65981165,143.24,143.23,0.04691387]
[1723975504928,5.65981165,143.24,143.23,3.53721387]
[1723975506243,0.04427433,143.25,143.23,3.53721387]
[1723975506435,5.65879578,143.24,143.23,3.53721387]
[1723975508444,0.04427433,143.25,143.23,3.53721387]
[1723975508735,5.659011,143.24,143.23,3.53721387]
[1723975508942,5.659011,143.24,143.23,0.04691387]
[1723975509134,5.65934294,143.24,143.23,0.04691387]
[1723975512838,5.6594345,143.24,143.23,0.04691387]
[1723975515045,9.1495345,143.24,143.23,0.04691387]
[1723975516846,9.14965832,143.24,143.23,0.04691387]
[1723975517947,5.65955832,143.24,143.23,0.04691387]
[1723975518838,5.65955832,143.24,143.23,3.53721387]
[1723975519045,5.65955832,143.24,143.23,0.04691387]
[1723975519046,9.14965832,143.24,143.23,0.04691387]
[1723975519744,5.65955832,143.24,143.23,0.04691387]
[1723975520752,0.04427433,143.25,143.23,3.53721387]
[1723975520944,5.6591256,143.24,143.23,3.53721387]
[1723975521853,5.6591256,143.24,143.23,0.04691387]
[1723975522353,0.04427433,143.25,143.24,3.4901]
[1723975522547,5.70217133,143.25,143.24,3.4901]
[1723975523845,0.04427433,143.25,143.24,3.4901]
[1723975524043,5.70140547,143.25,143.24,3.4901]
[1723975524252,0.04427433,143.25,143.24,3.4901]
[1723975524453,5.70141634,143.25,143.24,3.4901]
[1723975524955,5.70141939,143.25,143.24,3.4901]
[1723975525350,0.04427433,143.25,143.24,3.4901]
[1723975525552,5.70141256,143.25,143.24,3.4901]
[1723975526250,0.04427433,143.25,143.24,3.4901]
[1723975526553,5.70145613,143.25,143.24,3.4901]
[1723975527252,0.04427433,143.25,143.24,3.4901]
[1723975535154,5.70141961,143.25,143.24,3.4901]
[1723975543163,0.04427433,143.25,143.24,3.4901]
[1723975544362,0.04427433,143.25,143.23,0.04691387]
[1723975544363,0.04427433,143.25,143.1,11.77383752]
[1723975544557,3.57196893,143.29,143.14,8.3636]
[1723975544759,5.65817793,143.28,143.14,8.3636]
[1723975544962,5.65817793,143.27,143.14,8.3636]
[1723975545167,3.44911051,143.28,143.14,8.3636]
[1723975545367,25.38,143.3,143.14,8.3636]
[1723975545555,3.4899,143.25,143.21,3.4906]
[1723975545755,0.04470011,143.22,143.2,0.0478834]
[1723975545958,4.4,143.3,143.14,8.3636]
[1723975545959,1.2864,143.31,143.18,4.4]
[1723975546163,0.04831136,143.22,143.19,2.6535]
[1723975546365,0.04507851,143.26,143.23,0.04477267]
[1723975546565,5.65816281,143.25,143.23,0.04541955]
[1723975546763,5.65816281,143.24,143.23,0.04541955]
[1723975546959,5.65816281,143.25,143.23,0.04541955]
[1723975547168,5.65816281,143.24,143.23,0.04541955]
[1723975547565,5.65816281,143.24,143.23,3.53561955]
[1723975548669,0.04768334,143.26,143.25,3.4899]
[1723975548858,5.70579247,143.26,143.25,3.4899]
[1723975550261,0.04768334,143.26,143.25,3.4899]
[1723975555076,0.04768334,143.26,143.25,4.8164]
[1723975556181,140.29987013,143.33,143.29,3.4887]
[1723975556379,5.65628826,143.32,143.29,3.4887]
[1723975556682,5.65628826,143.31,143.25,1.3265]
[1723975556876,5.65629322,143.3,143.28,3.489]
[1723975557081,3.45735669,143.32,143.28,3.489]
[1723975557279,5.70171259,143.31,143.29,0.05138062]
[1723975557472,5.65629377,143.3,143.29,0.05138062]
[1723975558282,0.04541881,143.31,143.29,0.05138062]
[1723975558581,5.65632479,143.3,143.29,0.05138062]
[1723975560180,5.65632479,143.3,143.29,3.54028062]
[1723975560478,5.65632479,143.3,143.29,0.05138062]
[1723975562683,5.65632479,143.3,143.29,3.54028062]
[1723975564074,0.04541881,143.31,143.3,3.4886]
[1723975564279,5.70128424,143.31,143.3,3.4886]
[1723975566383,0.50987013,143.37,143.29,0.05138062]
[1723975566691,0.50987013,143.37,143.29,3.4491944]
[1723975566892,0.50987013,143.37,143.27,6.9784]
[1723975567097,0.50987013,143.37,143.36,3.4872]
[1723975567290,4.88987013,143.37,143.36,3.4872]
[1723975567494,0.50987013,143.37,143.36,3.4872]
[1723975567894,4.88987013,143.37,143.36,3.4872]
[1723975568705,4.88987013,143.37,143.35,0.05303974]
[1723975569000,4.38,143.36,143.35,0.05303974]
[1723975570099,0.50987013,143.37,143.35,0.05303974]
[1723975570298,4.38,143.36,143.35,0.05303974]
[1723975570799,0.50987013,143.37,143.35,0.05303974]
[1723975570993,4.38,143.36,143.35,0.05303974]
[1723975571898,0.50987013,143.37,143.35,0.05303974]
[1723975572199,0.50987013,143.41,143.4,3.4862]
[1723975572500,5.502,143.44,143.41,0.05352917]
[1723975572802,5.502,143.44,143.37,51.11577676]
[1723975572803,0.50987013,143.45,143.4,3.42602225]
[1723975573100,0.50987013,143.45,143.41,0.04921413]
[1723975573294,0.50987013,143.45,143.44,3.4852]
[1723975573596,0.50987013,143.45,143.44,6.9982651]
[1723975573794,0.50987013,143.45,143.44,3.4852]
[1723975574199,0.50987013,143.45,143.44,7.01847716]
[1723975574391,0.50987013,143.49,143.48,3.4843]
[1723975577501,0.52987013,143.53,143.52,3.4833]
[1723975577695,0.52987013,143.53,143.45,3.56220132]
[1723975577895,0.52987013,143.53,143.51,0.05131674]
[1723975578090,0.52987013,143.53,143.44,1.3069]
[1723975578301,0.52987013,143.53,143.44,4.85303266]
[1723975578494,0.52987013,143.53,143.47,0.04764098]
[1723975578702,0.52987013,143.53,143.5,3.4836]
[1723975578895,0.52987013,143.53,143.5,3.53735116]
[1723975579197,0.52987013,143.53,143.5,0.05375116]
[1723975580290,0.52987013,143.53,143.5,3.53745116]
[1723975580496,0.52987013,143.53,143.5,0.05375116]
[1723975580794,0.52987013,143.53,143.51,3.4835]
[1723975581300,0.52987013,143.53,143.51,4.74]
[1723975581501,0.50987013,143.57,143.52,1.3713]
[1723975581799,0.50987013,143.57,143.53,0.04404609]
[1723975582001,0.50987013,143.57,143.56,3.4823]
[1723975582199,0.50987013,143.61,143.56,4.74]
[1723975582501,0.50987013,143.61,143.6,3.4813]
[1723975582698,0.50987013,143.61,143.53,8.14890827]
[1723975582907,3.90937692,143.61,143.57,0.04808526]
[1723975583093,3.90937692,143.61,143.52,1.3713]
[1723975583094,6.101,143.6,143.52,1.3713]
[1723975583399,6.101,143.6,143.45,4.74]
[1723975583599,3.483,143.54,143.45,6.0718]
[1723975583802,3.483,143.54,143.46,3.51824404]
[1723975584104,1.361,143.6,143.45,6.0718]
[1723975584105,4.74,143.55,143.45,1.3318]
[1723975584294,0.04685552,143.51,143.49,0.04842343]
[1723975585298,0.04685552,143.51,143.45,1.3318]
[1723975585697,4.74,143.5,143.45,1.3318]
[1723975586403,8.2239,143.5,143.46,0.04411424]
[1723975586603,4.74,143.5,143.46,0.04411424]
[1723975587301,4.78685552,143.51,143.46,0.04411424]
[1723975587495,8.27055552,143.51,143.46,0.04411424]
[1723975587702,0.04685552,143.51,143.46,0.04411424]
[1723975588502,0.04685552,143.51,143.48,3.4841]
[1723975588695,0.04685552,143.51,143.46,0.04411424]
[1723975589104,0.04685552,143.51,143.5,3.4838]
[1723975589900,1.2731,143.59,143.49,4.79317208]
[1723975590101,9.5825,143.6,143.5,1.2704]
[1723975590297,1.361,143.6,143.5,1.2704]